fUSD/lending_fUSD_20260323
["ID","MTS","AMOUNT","RATE_DAILY","PERIOD"]
[408810998,1774285914849,-191.44677687,0.00046962,120]
[408810999,1774285914887,-500.0,0.00046962,120]
[408811000,1774285914925,-500.0,0.00046962,120]
[408811001,1774285914961,-500.0,0.00046962,120]
[408811002,1774285914998,-500.0,0.00046962,120]
[408811003,1774285915035,-500.0,0.00046962,120]
[408811004,1774285915073,-500.0,0.00046962,120]
[408811005,1774285915111,-500.0,0.00046962,120]
[408811006,1774285915151,-500.0,0.00046962,120]
[408811007,1774285915188,-500.0,0.00046962,120]
[408811008,1774285915226,-500.0,0.00046962,120]
[408811009,1774285915260,-500.0,0.00046962,120]
[408811010,1774285915294,-500.0,0.00046962,120]
[408811011,1774285915326,-500.0,0.00046962,120]
[408811012,1774285915361,-500.0,0.00046962,120]
[408811013,1774285915397,-500.0,0.00046962,120]
[408811014,1774285915434,-500.0,0.00046962,120]
[408811015,1774285915472,-500.0,0.00046962,120]
[408811016,1774285915511,-500.0,0.00046962,120]
[408811017,1774285915544,-500.0,0.00046962,120]
[408811018,1774285915581,-500.0,0.00046962,120]
[408811019,1774285915618,-500.0,0.00046962,120]
[408811020,1774285915655,-500.0,0.00046962,120]
[408811021,1774285915692,-500.0,0.00046962,120]
[408811022,1774285915729,-500.0,0.00046962,120]
[408811023,1774285915765,-500.0,0.00046962,120]
[408811024,1774285915800,-500.0,0.00046962,120]
[408811025,1774285915836,-341.72759683,0.00046962,120]
[408811026,1774285915867,-500.0,0.00046962,120]
[408811027,1774285915905,-500.0,0.00046962,120]
[408811028,1774285915942,-524.53458394,0.00046962,120]
[408811029,1774285915982,-500.0,0.00046962,120]
[408811030,1774285916021,-500.0,0.00046962,120]
[408811031,1774285916055,-168.01910382,0.00046962,120]
[408811032,1774285916094,-592.36,0.00046962,120]
[408811033,1774285916131,-500.0,0.00046962,120]
[408811034,1774285916169,-613.05919578,0.00046962,120]
[408811035,1774285916208,-500.0,0.00046962,120]
[408811036,1774285916245,-500.0,0.00046962,120]
[408811037,1774285916282,-500.0,0.00046962,120]
[408811038,1774285916316,-500.0,0.00046962,120]
[408811039,1774285916353,-500.0,0.00046962,120]
[408811040,1774285916392,-500.0,0.00046962,120]
[408811041,1774285916799,-500.0,0.00046962,120]
[408811042,1774285916840,-500.0,0.00046962,120]
[408811043,1774285916875,-155.83257566,0.00046962,120]
[408811044,1774285916918,-618.26683506,0.00046962,120]
[408811045,1774285916957,-500.0,0.00046962,120]
[408811046,1774285916990,-500.0,0.00046962,120]
[408811047,1774285917025,-500.0,0.00046962,120]
[408811048,1774285917060,-179.08371995,0.00046962,120]
[408811049,1774285917101,-582.98594287,0.00046962,120]
[408811050,1774285917140,-500.0,0.00046962,120]
[408811051,1774285917177,-500.0,0.00046962,120]
[408811052,1774285917215,-500.0,0.00046962,120]
[408811053,1774285917255,-500.0,0.00046962,120]
[408811054,1774285917292,-500.0,0.00046962,120]
[408811055,1774285917330,-500.0,0.00046962,120]
[408811056,1774285917367,-500.0,0.00046962,120]
[408811057,1774285917407,-500.0,0.00046962,120]
[408811058,1774285917448,-500.0,0.00046962,120]
[408811059,1774285917487,-500.0,0.00046962,120]
[408811060,1774285917524,-500.0,0.00046962,120]
[408811061,1774285917561,-500.0,0.00046962,120]
[408811062,1774285917598,-500.0,0.00046962,120]
[408811063,1774285917636,-500.0,0.00046962,120]
[408811064,1774285917679,-500.0,0.00046962,120]
[408811065,1774285917718,-449.58099322,0.00046962,120]
[408811066,1774285917756,-500.0,0.00046962,120]
[408811067,1774285917793,-500.0,0.00046962,120]
[408811068,1774285917833,-500.0,0.00046962,120]
[408811069,1774285917872,-500.0,0.00046962,120]
[408811070,1774285917916,-568.26757284,0.00046962,120]
[408811071,1774285917960,-276.6172038,0.00046962,120]
[408811072,1774285918000,-500.0,0.00046962,120]
[408811073,1774285918037,-500.0,0.00046962,120]
[408811074,1774285918076,-576.34679927,0.00046962,120]
[408811075,1774285918115,-500.0,0.00046962,120]
[408811076,1774285918152,-231.31048211,0.00046962,120]
[408811077,1774285918190,-581.01043299,0.00046962,120]
[408811078,1774285918228,-495.35621131,0.00046962,120]
[408811079,1774285918265,-234.56169569,0.00046962,60]
[408811080,1774285918300,-500.0,0.00046962,120]
[408811081,1774285918337,-500.0,0.00046962,120]
[408811082,1774285918370,-500.0,0.00046962,120]
[408811083,1774285918402,-500.0,0.00046962,120]
[408811084,1774285918441,-326.32573794,0.00046962,120]
[408811085,1774285918477,-500.0,0.00046962,120]
[408811086,1774285918510,-500.0,0.00046962,120]
[408811087,1774285918543,-500.0,0.00046962,120]
[408811088,1774285918578,-500.0,0.00046962,120]
[408811089,1774285918610,-579.81524285,0.00046962,120]
[408811090,1774285918642,-500.0,0.00046962,120]
[408811091,1774285918675,-500.0,0.00046962,120]
[408811092,1774285918709,-500.0,0.00046962,120]
[408811093,1774285918742,-500.0,0.00046962,120]
[408811094,1774285918777,-745.78,0.00046962,120]
[408811095,1774285918815,-745.78,0.00046962,120]
[408811096,1774285918851,-500.0,0.00046962,120]
[408811097,1774285918890,-500.0,0.00046962,120]
[408811098,1774285918929,-745.78,0.00046962,120]
[408811099,1774285918966,-500.0,0.00046962,120]
[408811100,1774285919003,-745.78,0.00046962,120]
[408811101,1774285919039,-500.0,0.00046962,120]
[408811102,1774285919075,-745.78,0.00046962,120]
[408811103,1774285919107,-745.78,0.00046962,120]
[408811104,1774285919137,-500.0,0.00046962,120]
[408811105,1774285919169,-745.78,0.00046962,120]
[408811106,1774285919203,-500.0,0.00046962,120]
[408811107,1774285919238,-745.78,0.00046962,120]
[408811108,1774285919275,-578.1576838,0.00046962,120]
[408811109,1774285919312,-745.78,0.00046962,120]
[408811110,1774285919347,-745.78,0.00046962,120]
[408811111,1774285919382,-745.78,0.00046962,120]
[408811112,1774285919419,-500.0,0.00046962,120]
[408811113,1774285919458,-500.0,0.00046962,120]
[408811114,1774285919492,-745.78,0.00046962,120]
[408811115,1774285919527,-632.77536765,0.00046962,120]
[408811116,1774285919563,-500.0,0.00046962,120]
[408811117,1774285919601,-745.78,0.00046962,120]
[408811118,1774285919639,-500.0,0.00046962,120]
[408811119,1774285919679,-745.78,0.00046962,120]
[408811120,1774285919718,-500.0,0.00046962,120]
[408811121,1774285919867,-745.78,0.00046962,120]
[408811122,1774285919908,-500.0,0.00046962,120]
[408811123,1774285919951,-745.78,0.00046962,120]
[408811124,1774285919991,-500.0,0.00046962,120]
[408811125,1774285920032,-745.78,0.00046962,120]
[408811126,1774285920070,-745.78,0.00046962,120]
[408811127,1774285920108,-745.78,0.00046962,120]
[408811128,1774285920147,-745.78,0.00046962,120]
[408811129,1774285920180,-500.0,0.00046962,120]
[408811130,1774285920214,-745.78,0.00046962,120]
[408811131,1774285920246,-168.5234325,0.00046962,120]
[408811132,1774285920281,-745.78,0.00046962,120]
[408811133,1774285920320,-745.78,0.00046962,120]
[408811134,1774285920364,-745.96435612,0.00046962,120]
[408811135,1774285920403,-500.0,0.00046962,120]
[408811136,1774285920436,-500.0,0.00046962,120]
[408811137,1774285920472,-500.0,0.00046962,120]
[408811138,1774285920507,-903.69,0.00046962,120]
[408811139,1774285920539,-903.69,0.00046962,120]
[408811140,1774285920573,-554.28062284,0.00046962,120]
[408811141,1774285920608,-903.69,0.00046962,120]
[408811142,1774285920645,-903.69,0.00046962,120]
[408811143,1774285920681,-903.69,0.00046962,120]
[408811144,1774285920716,-903.69,0.00046962,120]
[408811145,1774285920754,-903.69,0.00046962,120]
[408811146,1774285920787,-903.69,0.00046962,120]
[408811147,1774285920821,-500.0,0.00046962,120]
[408811148,1774285920855,-903.69,0.00046962,120]
[408811149,1774285920888,-582.85605101,0.00046962,120]
[408811150,1774285920919,-903.69,0.00046962,120]
[408811151,1774285920955,-903.69,0.00046962,120]
[408811152,1774285920986,-903.69,0.00046962,120]
[408811153,1774285921016,-903.69,0.00046962,120]
[408811154,1774285921052,-903.69,0.00046962,120]
[408811155,1774285921089,-903.69,0.00046962,120]
[408811156,1774285921123,-903.69,0.00046962,120]
[408811157,1774285921158,-903.69,0.00046962,120]
[408811158,1774285921192,-500.0,0.00046962,120]
[408811159,1774285921226,-500.0,0.00046962,120]
[408811160,1774285921259,-903.69,0.00046962,120]
[408811161,1774285921292,-500.0,0.00046962,120]
[408811162,1774285921325,-500.0,0.00046962,120]
[408811163,1774285921360,-903.69,0.00046962,120]
[408811164,1774285921409,-500.0,0.00046962,120]
[408811165,1774285921446,-500.0,0.00046962,120]
[408811166,1774285921482,-903.69,0.00046962,120]
[408811167,1774285921519,-500.0,0.00046962,120]
[408811168,1774285921556,-500.0,0.00046962,120]
[408811169,1774285921591,-903.69,0.00046962,120]
[408811170,1774285921624,-500.0,0.00046962,120]
[408811171,1774285921659,-500.0,0.00046962,120]
[408811172,1774285921695,-500.0,0.00046962,120]
[408811173,1774285921732,-903.69,0.00046962,120]
[408811174,1774285921767,-500.0,0.00046962,120]
[408811175,1774285921804,-500.0,0.00046962,120]
[408811176,1774285921837,-500.0,0.00046962,120]
[408811177,1774285921872,-903.69,0.00046962,120]
[408811178,1774285921909,-240.88,0.00046962,120]
[408811179,1774285921946,-500.0,0.00046962,120]
[408811180,1774285921988,-903.71923216,0.00046962,120]
[408811181,1774285922025,-500.0,0.00046962,120]
[408811182,1774285922062,-500.0,0.00046962,120]
[408811183,1774285922101,-423.0,0.00046962,120]
[408811184,1774285922139,-500.0,0.00046962,120]
[408811185,1774285922177,-500.0,0.00046962,120]
[408811186,1774285922215,-500.0,0.00046962,120]
[408811187,1774285922253,-500.0,0.00046962,120]
[408811188,1774285922289,-500.0,0.00046962,120]
[408811189,1774285922327,-500.0,0.00046962,120]
[408811190,1774285922364,-500.0,0.00046962,120]
[408811191,1774285922400,-300.02,0.00046962,120]
[408811192,1774285922439,-500.0,0.00046962,120]
[408811193,1774285922480,-500.0,0.00046962,120]
[408811194,1774285922517,-500.0,0.00046962,120]
[408811195,1774285922559,-500.0,0.00046962,120]
[408811196,1774285922597,-181.36,0.00046962,120]
[408811197,1774285922640,-546.4292834,0.00046962,120]
[408811198,1774285922680,-500.0,0.00046962,120]
[408811199,1774285922720,-500.0,0.00046962,120]
[408811200,1774285922757,-522.68712406,0.00046962,120]
[408811201,1774285922789,-225.82044396,0.00046962,120]
[408811202,1774285922826,-500.0,0.00046962,120]
[408811203,1774285922863,-500.0,0.00046962,120]
[408811204,1774285922901,-500.0,0.00046962,120]
[408811205,1774285922939,-500.0,0.00046962,120]
[408811206,1774285922977,-500.0,0.00046962,120]
[408811207,1774285923016,-500.0,0.00046962,120]
[408811208,1774285923054,-500.0,0.00046962,120]
[408811209,1774285923090,-500.0,0.00046962,120]
[408811210,1774285923126,-500.0,0.00046962,120]
[408811211,1774285923162,-289.43995728,0.00046962,120]
[408811212,1774285923198,-500.0,0.00046962,120]
[408811213,1774285923233,-500.0,0.00046962,120]
[408811214,1774285923274,-500.0,0.00046962,120]
[408811215,1774285923310,-500.0,0.00046962,120]
[408811216,1774285923346,-500.0,0.00046962,120]
[408811217,1774285923381,-500.0,0.00046962,120]
[408811218,1774285923413,-588.05,0.00046962,120]
[408811219,1774285923449,-500.0,0.00046962,120]
[408811220,1774285923485,-500.0,0.00046962,120]
[408811221,1774285923523,-500.0,0.00046962,120]
[408811222,1774285923560,-500.0,0.00046962,120]
[408811223,1774285923594,-500.0,0.00046962,120]
[408811224,1774285923634,-500.0,0.00046962,120]
[408811225,1774285923673,-500.0,0.00046962,120]
[408811226,1774285923711,-500.0,0.00046962,120]
[408811227,1774285923749,-500.0,0.00046962,120]
[408811228,1774285923781,-500.0,0.00046962,120]
[408811229,1774285923818,-463.09365674,0.00046962,120]
[408811230,1774285923855,-500.0,0.00046962,120]
[408811231,1774285923891,-500.0,0.00046962,120]
[408811232,1774285923932,-621.38123829,0.00046962,120]
[408811233,1774285923971,-640.75,0.00046962,90]
[408811234,1774285924011,-640.75,0.00046962,90]
[408811235,1774285924050,-640.75,0.00046962,90]
[408811236,1774285924090,-640.75,0.00046962,90]
[408811237,1774285924126,-640.75,0.00046962,90]
[408811238,1774285924160,-640.75,0.00046962,90]
[408811239,1774285924558,-500.0,0.00046962,120]
[408811240,1774285924600,-640.75,0.00046962,90]
[408811241,1774285924648,-541.40435216,0.00046962,120]
[408811242,1774285924701,-500.0,0.00046962,120]
[408811243,1774285924743,-640.75,0.00046962,90]
[408811244,1774285924782,-500.0,0.00046962,120]
[408811245,1774285924817,-640.75,0.00046962,90]
[408811246,1774285924854,-500.0,0.00046962,120]
[408811247,1774285924893,-640.75,0.00046962,90]
[408811248,1774285924936,-500.0,0.00046962,120]
[408811249,1774285924976,-640.75,0.00046962,90]
[408811250,1774285925017,-500.0,0.00046962,120]
[408811251,1774285925053,-500.0,0.00046962,120]
[408811252,1774285925097,-640.75,0.00046962,90]
[408811253,1774285925137,-500.0,0.00046962,120]
[408811254,1774285925175,-500.0,0.00046962,120]
[408811255,1774285925216,-500.0,0.00046962,120]
[408811256,1774285925253,-640.75,0.00046962,90]
[408811257,1774285925293,-500.0,0.00046962,120]
[408811258,1774285925330,-500.0,0.00046962,120]
[408811259,1774285925370,-500.0,0.00046962,120]
[408811260,1774285925405,-500.0,0.00046962,120]
[408811261,1774285925445,-640.75,0.00046962,90]
[408811262,1774285925483,-500.0,0.00046962,120]
[408811263,1774285925519,-242.90260735,0.00046962,120]
[408811264,1774285925553,-640.75,0.00046962,90]
[408811265,1774285925590,-640.75,0.00046962,90]
[408811266,1774285925628,-500.0,0.00046962,120]
[408811267,1774285925670,-591.76,0.00046962,120]
[408811268,1774285925713,-640.75,0.00046962,90]
[408811269,1774285925751,-640.75,0.00046962,90]
[408811270,1774285925789,-640.75,0.00046962,90]
[408811271,1774285925829,-640.75,0.00046962,90]
[408811272,1774285925867,-640.75,0.00046962,90]
[408811273,1774285925907,-640.75,0.00046962,90]
[408811274,1774285925946,-640.75,0.00046962,90]
[408811275,1774285925980,-500.0,0.00046962,120]
[408811276,1774285926017,-500.0,0.00046962,120]
[408811277,1774285926055,-640.75,0.00046962,90]
[408811278,1774285926092,-528.55401237,0.00046962,120]
[408811279,1774285926128,-500.0,0.00046962,120]
[408811280,1774285926166,-538.80576296,0.00046962,120]
[408811281,1774285926204,-500.0,0.00046962,120]
[408811282,1774285926238,-342.53944536,0.00046962,120]
[408811283,1774285926275,-500.0,0.00046962,120]
[408811284,1774285926320,-500.0,0.00046962,120]
[408811285,1774285926357,-500.0,0.00046962,120]
[408811286,1774285926396,-500.0,0.00046962,120]
[408811287,1774285926437,-500.0,0.00046962,120]
[408811288,1774285926473,-500.0,0.00046962,120]
[408811289,1774285926513,-322.94838301,0.00046962,120]
[408811290,1774285926553,-500.0,0.00046962,120]
[408811291,1774285926588,-500.0,0.00046962,120]
[408811292,1774285926626,-500.0,0.00046962,120]
[408811294,1774285926663,-500.0,0.00046962,120]
[408811295,1774285926698,-500.0,0.00046962,120]
[408811296,1774285926739,-500.0,0.00046962,120]
[408811297,1774285926779,-500.0,0.00046962,120]
[408811298,1774285926821,-226.34991375,0.00046962,120]
[408811299,1774285940929,-624.35787928,0.00012111,2]
[408811300,1774285940941,-575.64212072,0.00012111,2]
[408811301,1774285940950,-500.0,0.00012112,2]
[408811302,1774285940961,-500.0,0.00012112,2]
[408811303,1774285940971,-500.0,0.00012112,2]
[408811304,1774285940980,-500.0,0.00012112,2]
[408811305,1774285940990,-500.0,0.00012112,2]
[408811306,1774285940999,-106.74522698,0.00012112,2]
[408811307,1774285941011,-393.25477302,0.00012112,2]
[408811308,1774285941021,-3.7964352,0.00012112,2]
[408811309,1774285941031,-496.2035648,0.00012112,2]
[408811310,1774285941040,-500.0,0.00012112,2]
[408811311,1774285941049,-500.0,0.00012112,2]
[408811312,1774285941059,-500.0,0.00012112,2]
[408811313,1774285941067,-500.0,0.00012112,2]
[408811314,1774285941077,-169.07210569,0.00012112,2]
[408811315,1774285941086,-162.191,0.00012139,2]
[408811316,1774285941095,-2046.616,0.00012139,2]
[408811317,1774285941104,-2500.0,0.00012176,2]
[408811318,1774285941113,-62150.01100986,0.00012187,2]
[408811319,1774285941124,-2319.81522465,0.00012187,2]
[408811320,1774285941136,-157316.58450048,0.00012187,2]
[408811321,1774285941147,-44015.56895398,0.00012187,2]
[408811322,1774285941158,-1000.0,0.00012187,2]
[408811323,1774285941172,-1309.45761818,0.00012187,2]
[408811324,1774285941182,-14195.18713073,0.00012187,2]
[408811325,1774285941193,-4434.76220405,0.00012187,2]
[408811326,1774285941208,-1900.0,0.00012187,2]
[408811327,1774285941649,-426.61846658,0.00012187,2]
[408811328,1774285941670,-5861.0,0.00012187,2]
[408811329,1774285941681,-387266.17299149,0.00012187,2]
[408811330,1774285941691,-2500.0,0.0001223,2]
[408811331,1774285941701,-2500.0,0.0001223,2]
[408811332,1774285941710,-2500.0,0.00012287,2]
[408811333,1774285941718,-150.0,0.00012299,2]
[408811334,1774285941727,-280.3921874,0.00012377,2]
[408811335,1774285941736,-526523.8487,0.00012387,2]
[408811336,1774285941745,-419.64,0.00012438,2]
[408811337,1774285941754,-162.65,0.0001251,2]
[408811338,1774285941763,-344.84,0.00012618,2]
[408811339,1774285941772,-200.0,0.00012954,2]
[408811340,1774285941785,-250.0,0.00013,2]
[408811341,1774285941794,-1500.0,0.00013081,2]
[408811342,1774285941803,-410.36148145,0.00013316,2]
[408811343,1774285941965,-6960.3938538,0.00013316,2]
[408811344,1774285941974,-1680.0,0.00013322,2]
[408811345,1774285941983,-2500.0,0.00013353,2]
[408811346,1774285941992,-2500.0,0.00013353,2]
[408811347,1774285942001,-3240.0,0.00013425,2]
[408811348,1774285942010,-369.0,0.00013698,2]
[408811349,1774285942019,-152.54,0.00013699,2]
[408811350,1774285942028,-186.48,0.00013792,2]
[408811351,1774285942037,-501.0,0.00014,2]
[408811352,1774285942046,-516.25564349,0.00014024,2]
[408811353,1774285942055,-200.0,0.00014066,2]
[408811354,1774285942064,-165.17,0.00014189,2]
[408811355,1774285942074,-2186.99,0.00014316,2]
[408811356,1774285942083,-1074.53,0.00014425,2]
[408811357,1774285942092,-162.65,0.00014595,2]
[408811358,1774285942101,-461.0,0.00014654,2]
[408811359,1774285942110,-300.0,0.00015,2]
[408811360,1774285942119,-979.16666667,0.00015174,2]
[408811361,1774285942128,-160.0,0.00015174,2]
[408811362,1774285942137,-500.0,0.00015199,2]
[408811363,1774285942146,-500.0,0.00015199,2]
[408811364,1774285942155,-395.64,0.00015507,2]
[408811365,1774285942164,-501.0,0.00015833,3]
[408811366,1774285942173,-168.0,0.00015865,2]
[408811367,1774285942193,-395.64,0.00015895,2]
[408811368,1774285942203,-150.0,0.000159,2]
[408811369,1774285942212,-174.00010268,0.000159,2]
[408811370,1774285942223,-150.0,0.000159,2]
[408811371,1774285942233,-345028.36427967,0.00016,2]
[408811372,1774285942242,-1962.0,0.00016,3]
[408811373,1774285942251,-1000.0,0.00016,2]
[408811374,1774285942259,-1000.0,0.00016,2]
[408811375,1774285942268,-1000.0,0.00016,2]
[408811376,1774285942277,-7022.92622605,0.00016,3]
[408811377,1774285942286,-300.0,0.00016,2]
[408811378,1774285942295,-250.0,0.00016,2]
[408811379,1774285942304,-348.42512553,0.00016124,2]
[408811380,1774285942313,-167.91977917,0.0001635,2]
[408811381,1774285942322,-152.0,0.00016438,2]
[408811382,1774285942331,-152.0,0.00016438,2]
[408811383,1774285942340,-152.0,0.00016438,2]
[408811384,1774285942349,-152.0,0.00016438,2]
[408811385,1774285942359,-292.0,0.00016438,2]
[408811386,1774285942368,-1033.0,0.0001645,5]
[408811387,1774285942377,-9352.54097665,0.00016451,2]
[408811388,1774285942386,-168.0,0.00016451,2]
[408811389,1774285942395,-162.65,0.0001668,2]
[408811390,1774285942405,-168.0,0.00016702,2]
[408811391,1774285942415,-150.0,0.0001683,7]
[408811392,1774285942424,-517.43,0.00016922,2]
[408811393,1774285942434,-4353.8,0.00016922,2]
[408811394,1774285942445,-8611.26,0.00016922,2]
[408811395,1774285942454,-464.0,0.00017,2]
[408811396,1774285942464,-160.05510912,0.00017,2]
[408811397,1774285942473,-350.0,0.00017,2]
[408811398,1774285942482,-636.12,0.00017294,2]
[408811399,1774285942494,-636.12,0.00017294,2]
[408811400,1774285942503,-636.12,0.00017294,2]
[408811401,1774285942512,-636.12,0.00017294,2]
[408811402,1774285942522,-636.12,0.00017294,2]
[408811403,1774285942531,-636.12,0.00017294,2]
[408811404,1774285942540,-636.12,0.00017294,2]
[408811405,1774285942554,-636.12,0.00017294,2]
[408811406,1774285942564,-636.12,0.00017294,2]
[408811407,1774285942574,-636.12,0.00017294,2]
[408811408,1774285942583,-636.12,0.00017294,2]
[408811409,1774285942592,-1295.0,0.0001731,5]
[408811410,1774285942601,-150.113,0.0001731,2]
[408811411,1774285942610,-1345.0,0.0001731,2]
[408811412,1774285942620,-3515.0,0.0001731,2]
[408811413,1774285942629,-621.0,0.0001731,2]
[408811414,1774285942638,-1264.805,0.0001731,2]
[408811415,1774285942648,-1215.0,0.0001731,2]
[408811416,1774285942657,-924.0,0.0001731,2]
[408811417,1774285942667,-6008.0,0.0001731,2]
[408811418,1774285942676,-415.0,0.0001731,2]
[408811419,1774285942686,-2466.0,0.0001731,2]
[408811420,1774285942695,-344.84,0.00017666,2]
[408811421,1774285942705,-501.0,0.00017667,5]
[408811422,1774285942715,-2773.0,0.00017669,2]
[408811423,1774285942724,-1000.0,0.00018,2]
[408811424,1774285942733,-245.28,0.00018024,2]
[408811425,1774285942742,-7370.75533519,0.00018108,2]
[408811426,1774285942752,-162.65,0.00018765,2]
[408811427,1774285942761,-1000.0,0.00019,2]
[408811428,1774285942770,-1000.0,0.00019,2]
[408811429,1774285942779,-400.0,0.00019,2]
[408811430,1774285942789,-150.47,0.00019178,2]
[408811431,1774285942798,-1000.0,0.000192,2]
[408811432,1774285942808,-2000.0,0.00019423,2]
[408811433,1774285942818,-501.0,0.000195,6]
[408811434,1774285942827,-440.21627331,0.000195,30]
[408811435,1774285942838,-789.9,0.00019757,2]
[408811436,1774285942847,-215.77,0.0002,2]
[408811437,1774285942856,-166.57,0.0002,14]
[408811438,1774285942866,-500.0,0.0002,30]
[408811439,1774285942874,-200.0,0.0002,10]
[408811440,1774285942885,-200.460972,0.0002,2]
[408811441,1774285942896,-300.0,0.000201,10]
[408811442,1774285942905,-245.28,0.00020187,2]
[408811443,1774285942915,-1345.0,0.0002031,2]
[408811444,1774285942924,-3514.0,0.0002031,2]
[408811445,1774285942934,-621.0,0.0002031,2]
[408811446,1774285942944,-1215.0,0.0002031,2]
[408811447,1774285942953,-924.0,0.0002031,2]
[408811448,1774285942964,-6008.0,0.0002031,2]
[408811449,1774285942974,-2466.0,0.0002031,2]
[408811450,1774285942983,-230.0,0.00020375,2]
[408811451,1774285942992,-285.0,0.00020582,2]
[408811452,1774285943001,-302.19385777,0.00020797,2]
[408811453,1774285943011,-326.0,0.000209,2]
[408811454,1774285943020,-1000.0,0.00021,2]
[408811455,1774285943029,-153.12,0.00021,7]
[408811456,1774285943038,-450.0,0.00021,2]
[408811457,1774285943047,-501.0,0.00021333,8]
[408811458,1774285943057,-219.124458,0.00021414,7]
[408811459,1774285943067,-406.919294,0.00021414,7]
[408811460,1774285943077,-2000.0,0.00021851,2]
[408811461,1774285943086,-150.0,0.00021872,30]
[408811462,1774285943095,-326.0,0.000219,2]
[408811463,1774285943105,-5000.0,0.00021918,2]
[408811464,1774285943114,-1000.0,0.00022,2]
[408811465,1774285943124,-150.47,0.00022178,2]
[408811466,1774285943133,-245.28,0.0002235,2]
[408811467,1774285943143,-150.0,0.000229,30]
[408811468,1774285943152,-2000.0,0.000229,2]
[408811469,1774285943161,-1000.0,0.000229,2]
[408811470,1774285943171,-326.0,0.000229,2]
[408811471,1774285943180,-5921.10769815,0.000229,2]
[408811472,1774285943194,-304.78322576,0.000229,2]
[408811473,1774285943206,-276.99747719,0.000229,2]
[408811474,1774285943217,-717.71232602,0.000229,2]
[408811475,1774285943228,-150.15460807,0.000229,2]
[408811476,1774285943238,-482.66713668,0.00023,11]
[408811477,1774285943305,-4161.00879477,0.00023,11]
[408811478,1774285943315,-1390.82382044,0.00023,12]
[408811479,1774285943403,-8174.82086887,0.00023,12]
[408811480,1774285943412,-500.0,0.00023,2]
[408811481,1774285943421,-501.0,0.00023167,10]
[408811482,1774285943431,-707.74,0.00023246,2]
[408811483,1774285943440,-1215.0,0.0002331,2]
[408811484,1774285943449,-924.0,0.0002331,2]
[408811485,1774285943458,-6008.0,0.0002331,2]
[408811486,1774285943467,-2466.0,0.0002331,2]
[408811487,1774285943480,-326.0,0.000239,2]
[408811488,1774285943490,-500.0,0.00024,2]
[408811489,1774285943501,-150.0,0.00024215,30]
[408811490,1774285943511,-2000.0,0.00024279,2]
[408811491,1774285943521,-223.45439596,0.000245,30]
[408811492,1774285943531,-245.28,0.00024513,2]
[408811493,1774285943540,-308.820251,0.00024626,14]
[408811494,1774285943549,-1000.0,0.00024658,2]
[408811495,1774285943558,-150.0,0.00024658,2]
[408811496,1774285943567,-5000.0,0.000248,2]
[408811497,1774285943577,-419.31776281,0.000248,2]
[408811498,1774285943587,-150.0,0.00024899,2]